[Event "EYCC 2017"]
[Site "Mamaia"]
[Date "2017.09.11"]
[Round "6"]
[White "Janiashvili, Mariami"]
[Black "Dwilewicz, Katarzyna"]
[Result "0-1"]
[ECO "D38"]
[WhiteElo "1875"]
[BlackElo "1884"]
[Annotator "NA RC"]
[PlyCount "124"]
[EventDate "2017.??.??"]
[EventType "swiss"]
[EventCountry "ROU"]
[SourceTitle "playchess.com"]
[Source "ChessBase"]
[SourceQuality "1"]
[TimeControl "40/5400+30:1800+30"]

1. d4 {[%emt 0:00:00]} d5 {[%emt 0:00:10]} 2. c4 {[%emt 0:00:00]} e6 {[%emt 0:00:05]} 3. Nc3 {[%emt 0:00:00]} Bb4 {[%emt 0:00:06]} 4. Nf3 {[%emt 0:00:55]} Nf6 {[%emt 0:00:16]} 5. Bg5 {[%emt 0:00:25]} Nbd7 {[%emt 0:03:43]} 6. cxd5 {[%emt 0:02:17]} exd5 {[%emt 0:00:15]} 7. e3 {[%emt 0:00:24]} c5 {[%emt 0:01:53]} 8. Bd3 {[%emt 0:03:00]} Qa5 {[%emt 0:04:20]} 9. Qc2 {[%emt 0:01:55]} c4 {[%emt 0:00:59]} 10. Bf5 {[%emt 0:01:32]} O-O {[%emt 0:03:31]} 11. O-O {[%emt 0:00:09]} Re8 {[%emt 0:04:22]} 12. Ne5 {[%emt 0:07:02]} Nxe5 {[%emt 0:24:32]} 13. dxe5 {[%emt 0:08:46]} Rxe5 {[%emt 0:07:50]} 14. Bxc8 {[%emt 0:00:07]} Rxg5 {[%emt 0:05:32]} 15. Bxb7 {[%emt 0:08:21]} Rb8 {[%emt 0:03:41]} 16. Bc6 {[%emt 0:00:09]} Bxc3 {[%emt 0:06:51]} 17. bxc3 {[%emt 0:00:38]} Qc7 {[%emt 0:01:11]} 18. f4 {[%emt 0:02:35]} Rh5 {[%emt 0:00:56]} 19. Ba4 {[%emt 0:00:38]} Rh6 {[%emt 0:04:39]} 20. Qd1 {[%emt 0:08:54]} Qe7 {[%emt 0:02:43]} 21. Re1 {[%emt 0:05:09]} Qa3 {[%emt 0:06:08]} 22. Rc1 {[%emt 0:09:59]} Rd8 {[%emt 0:02:53]} 23. Bc2 {[%emt 0:08:20]} Qxa2 {[%emt 0:04:12]} 24. e4 {[%emt 0:02:45]} Qa5 {[%emt 0:00:26]} 25. e5 {[%emt 0:02:36]} Qc5+ {[%emt 0:01:18]} 26. Kh1 {[%emt 0:00:24]} Nd7 {[%emt 0:00:12]} 27. f5 {[%emt 0:00:52]} Nf8 {[%emt 0:05:26]} 28. f6 {[%emt 0:07:19]} Qf2 {[%emt 0:02:24]} 29. fxg7 {[%emt 0:01:42]} Ne6 {[%emt 0:00:41]} 30. Qg4 {[%emt 0:02:41]} Rh4 {[%emt 0:01:20]} 31. Re2 {[%emt 0:02:01]} Qf4 {[%emt 0:01:15]} 32. Qxf4 {[%emt 0:00:20]} Rxf4 {[%emt 0:00:18]} 33. Rd2 {[%emt 0:02:23]} Kxg7 {[%emt 0:00:54]} 34. Rcd1 {[%emt 0:01:18]} Nc7 {[%emt 0:01:29]} 35. Ba4 {[%emt 0:04:25]} Re4 {[%emt 0:00:26]} 36. Rd4 {[%emt 0:00:51]} Rxd4 {[%emt 0:00:43]} 37. Rxd4 {[%emt 0:01:31]} Ne6 {[%emt 0:00:22]} 38. Rg4+ {[%emt 0:00:16]} Kf8 {[%emt 0:00:09]} 39. Kg1 {[%emt 0:00:12]} Ke7 {[%emt 0:00:32]} 40. Rh4 {[%emt 0:00:00]} d4 {[%emt 0:01:01]} 41. Kf2 {[%emt 0:02:46]} dxc3 {[%emt 0:15:43]} 42. Rxc4 {[%emt 0:00:15]} Rd4 {[%emt 0:00:48]} 43. Rxd4 {[%emt 0:01:02]} Nxd4 {[%emt 0:00:03]} 44. Ke3 {[%emt 0:00:08]} c2 {[%emt 0:00:13]} 45. Kd2 {[%emt 0:00:03]} Ke6 {[%emt 0:00:14]} 46. Be8 {[%emt 0:00:07]} a5 {[%emt 0:01:20]} 47. Kc1 {[%emt 0:00:11]} h6 {[%emt 0:01:10]} 48. Kd2 {[%emt 0:00:26]} Nf5 {[%emt 0:10:43]} 49. Kxc2 {[%emt 0:06:27]} Ng7 {[%emt 0:00:07]} 50. Bc6 {[%emt 0:05:46]} Kxe5 {[%emt 0:00:38]} 51. Kb3 {[%emt 0:00:17]} Kd6 {[%emt 0:02:43]} 52. Ba8 {[%emt 0:01:43]} Kc5 {[%emt 0:00:19]} 53. Ka4 {[%emt 0:00:54]} Kb6 {[%emt 0:00:04]} 54. g4 {[%emt 0:00:40]} Ne6 {[%emt 0:01:04]} 55. Bd5 {[%emt 0:01:01]} Nc5+ {[%emt 0:00:06]} 56. Ka3 {[%emt 0:00:03]} f6 {[%emt 0:00:02]} 57. Bf3 {[%emt 0:00:43]} Nd3 {[%emt 0:00:16]} 58. Ka4 {[%emt 0:00:39]} Ne5 {[%emt 0:00:14]} 59. Be2 {[%emt 0:00:11]} Kc5 {[%emt 0:01:06]} 60. Kxa5 {[%emt 0:00:20]} Kd4 {[%emt 0:00:03]} 61. h4 {[%emt 0:01:19]} Ke3 {[%emt 0:00:10]} 62. g5 {[%emt 0:00:15]} Kxe2 {[%emt 0:03:35]} 0-1

[Event "EYCC 2017"]
[Site "Mamaia"]
[Date "2017.09.11"]
[Round "6"]
[White "Luczak, Filip"]
[Black "Suleymanli, Aydin"]
[Result "0-1"]
[ECO "C10"]
[WhiteElo "1866"]
[BlackElo "2351"]
[Annotator "NA"]
[PlyCount "68"]
[EventDate "2017.??.??"]
[EventType "swiss"]
[EventCountry "ROU"]
[SourceTitle "playchess.com"]
[Source "ChessBase"]
[SourceQuality "1"]
[TimeControl "40/5400+30:1800+30"]

1. e4 {[%emt 0:00:00]} e6 {[%emt 0:00:03]} 2. d4 {[%emt 0:00:00]} d5 {[%emt 0:00:03]} 3. Nc3 {[%emt 0:00:00]} Nc6 {[%emt 0:00:03]} 4. exd5 {[%emt 0:03:12]} exd5 {[%emt 0:02:17]} 5. Nf3 {[%emt 0:00:21]} Bb4 {[%emt 0:01:30]} 6. Bd3 {[%emt 0:05:22]} Bg4 {[%emt 0:08:00]} 7. Be3 {[%emt 0:05:16]} Nf6 {[%emt 0:00:36]} 8. h3 {[%emt 0:04:00]} Bh5 {[%emt 0:00:27]} 9. a3 {[%emt 0:13:19]} Ba5 {[%emt 0:07:03]} 10. b4 {[%emt 0:13:26]} Bb6 {[%emt 0:00:40]} 11. Be2 {[%emt 0:03:40]} O-O {[%emt 0:04:07]} 12. O-O {[%emt 0:05:34]} Ne4 {[%emt 0:10:49]} 13. Nxe4 {[%emt 0:19:06]} dxe4 {[%emt 0:00:09]} 14. Nd2 {[%emt 0:00:06]} Bxe2 {[%emt 0:01:17]} 15. Qxe2 {[%emt 0:00:02]} f5 {[%emt 0:00:14]} 16. Nb3 {[%emt 0:06:36]} f4 {[%emt 0:02:58]} 17. Bc1 {[%emt 0:02:03]} Nxd4 {[%emt 0:10:37]} 18. Nxd4 {[%emt 0:10:59]} Qxd4 {[%emt 0:00:23]} 19. Rb1 {[%emt 0:02:03]} Rae8 {[%emt 0:07:59]} 20. Rd1 {[%emt 0:02:45]} f3 {[%emt 0:03:44]} 21. Qe1 {[%emt 0:01:07]} Qf6 {[%emt 0:02:11]} 22. Be3 {[%emt 0:00:42]} fxg2 {[%emt 0:00:25]} 23. Bxb6 {[%emt 0:00:33]} axb6 {[%emt 0:01:06]} 24. Qe3 {[%emt 0:00:27]} Re5 {[%emt 0:00:31]} 25. Kxg2 {[%emt 0:01:00]} Qg6+ {[%emt 0:04:40]} 26. Kf1 {[%emt 0:00:31]} Ref5 {[%emt 0:01:17]} 27. Rd2 {[%emt 0:00:43]} Rf3 {[%emt 0:00:06]} 28. Qd4 e3 {[%emt 0:01:38]} 29. Qd5+ {[%emt 0:00:31]} R3f7 {[%emt 0:00:06]} 30. Re2 {[%emt 0:00:59]} Kh8 {[%emt 0:00:01]} 31. Qh1 {[%emt 0:00:16]} Rxf2+ {[%emt 0:00:14]} 32. Ke1 {[%emt 0:00:25]} Qg3 {[%emt 0:00:07]} 33. Rxf2 {[%emt 0:00:36]} Qxf2+ {[%emt 0:00:02]} 34. Kd1 {[%emt 0:00:10]} Qd2# {[%emt 0:00:04]} 0-1

[Event "EYCC 2017"]
[Site "Mamaia"]
[Date "2017.09.11"]
[Round "6"]
[White "Grigoryan, Arpine"]
[Black "Lomandong Noela-Joyce"]
[Result "1/2-1/2"]
[ECO "B27"]
[WhiteElo "1865"]
[BlackElo "2040"]
[Annotator "NA RC"]
[PlyCount "136"]
[EventDate "2017.??.??"]
[EventType "swiss"]
[EventCountry "ROU"]
[SourceTitle "playchess.com"]
[Source "ChessBase"]
[SourceQuality "1"]
[TimeControl "40/5400+30:1800+30"]

1. e4 {[%emt 0:00:00]} c5 {[%emt 0:00:05]} 2. Nf3 {[%emt 0:00:00]} g6 {[%emt 0:00:06]} 3. c3 {[%emt 0:06:39]} Bg7 {[%emt 0:00:06]} 4. d4 {[%emt 0:00:26]} cxd4 {[%emt 0:00:16]} 5. cxd4 {[%emt 0:00:16]} d5 {[%emt 0:00:39]} 6. exd5 {[%emt 0:08:50]} Nf6 {[%emt 0:01:11]} 7. Nc3 {[%emt 0:00:29]} Nxd5 {[%emt 0:05:32]} 8. Bc4 {[%emt 0:00:52]} Nb6 {[%emt 0:01:52]} 9. Bb3 {[%emt 0:02:17]} O-O {[%emt 0:02:30]} 10. O-O {[%emt 0:10:10]} Nc6 {[%emt 0:13:37]} 11. Be3 {[%emt 0:01:18]} Na5 {[%emt 0:07:17] D94: Grünfeld: 4 Nf3 Bg7 5 e3} (11... Bg4 12. h3 Bf5 13. d5 Na5 14. Bd4 Nxb3 15. axb3 f6 16. Bc5 Re8 17. Re1 e5 18. dxe6 Qxd1 19. Nxd1 {1-0 (38) Martirosyan,H (2516)-Salgado Lopez,I (2627) Minsk 2017}) 12. Bc2 {[%emt 0:02:07]} Nac4 {[%emt 0:01:23]} 13. Qe2 {[%emt 0:07:11]} Bd7 {[%emt 0:12:49]} 14. Bd3 {[%emt 0:04:54]} Rc8 $146 {[%emt 0:03:10]} ({Predecessor:} 14... Nd6 15. Rfd1 Nf5 16. Rac1 Rc8 17. b3 e6 18. Ne5 Nxe3 19. fxe3 Rxc3 20. Rxc3 {½-½ (26) Boruchovsky,A-Alekseenko,K (2056) Sibenik 2007}) 15. Rfd1 {[%emt 0:03:00]} Nxe3 {[%emt 0:04:35]} 16. fxe3 {[%emt 0:01:43]} Na4 {[%emt 0:01:51]} 17. Nxa4 {[%emt 0:12:07]} Bxa4 {[%emt 0:00:15]} 18. b3 {[%emt 0:00:02]} Bc6 {[%emt 0:01:53]} 19. Bc4 {[%emt 0:01:01]} e6 {[%emt 0:01:18]} 20. Rac1 {[%emt 0:02:13]} Qa5 {[%emt 0:01:29]} 21. e4 {[%emt 0:07:17]} b5 {[%emt 0:05:55]} 22. Bd3 {[%emt 0:00:06]} Qb6 {[%emt 0:00:08]} 23. Bb1 {[%emt 0:00:22]} e5 {[%emt 0:01:08]} 24. Qf2 {[%emt 0:05:27]} exd4 {[%emt 0:02:57]} 25. Nxd4 {[%emt 0:00:13]} Bb7 {[%emt 0:01:00]} 26. Nf3 {[%emt 0:02:13]} Qe6 {[%emt 0:08:13]} 27. Qxa7 {[%emt 0:02:54]} Bh6 {[%emt 0:14:11]} 28. Rxc8 {[%emt 0:01:50]} Qxc8 {[%emt 0:00:01]} 29. Qd4 {[%emt 0:02:42]} Bg7 {[%emt 0:03:54]} 30. Qd6 {[%emt 0:07:05]} Qc3 {[%emt 0:03:10]} 31. Qf4 {[%emt 0:00:35]} Qc5+ {[%emt 0:01:16]} 32. Kh1 {[%emt 0:00:14]} f5 {[%emt 0:00:23]} 33. exf5 {[%emt 0:03:52]} Qf2 {[%emt 0:01:56]} 34. Be4 {[%emt 0:04:24]} g5 {[%emt 0:00:49]} 35. Qd6 {[%emt 0:00:30]} Bxe4 {[%emt 0:00:31]} 36. Qe6+ {[%emt 0:00:04]} Kh8 {[%emt 0:00:17]} 37. Qxe4 {[%emt 0:00:05]} Qxa2 {[%emt 0:00:28]} 38. Qd5 {[%emt 0:02:13]} Qc2 {[%emt 0:00:28]} 39. Nxg5 {[%emt 0:01:02]} Rxf5 {[%emt 0:00:09]} 40. Qd8+ {[%emt 0:00:00]} Rf8 {[%emt 0:00:08]} 41. Ne6 {[%emt 0:05:02]} Rg8 {[%emt 0:02:01]} 42. Qd5 {[%emt 0:04:00]} Bc3 {[%emt 0:03:35]} 43. Rg1 $16 {[%emt 0:09:43]} b4 {[%emt 0:06:42]} 44. Nd8 {[%emt 0:02:39]} Qf2 {[%emt 0:03:01]} 45. Nf7+ {[%emt 0:01:16]} Kg7 {[%emt 0:00:06]} 46. Ne5 {[%emt 0:01:10]} Rf8 {[%emt 0:04:52]} 47. Nf3 {[%emt 0:01:05]} Kh8 {[%emt 0:02:37]} 48. Qd3 {[%emt 0:01:03]} Rg8 {[%emt 0:03:18]} 49. Qe4 {[%emt 0:00:49]} Qb2 {[%emt 0:02:11]} 50. Qd5 {[%emt 0:00:22]} Bf6 {[%emt 0:00:31]} 51. Qf5 {[%emt 0:01:46]} Qc3 {[%emt 0:02:25]} 52. Rb1 {[%emt 0:01:12]} Re8 {[%emt 0:01:04]} 53. h3 {[%emt 0:00:48]} Ra8 {[%emt 0:01:01]} 54. Kh2 {[%emt 0:01:41]} Qc7+ {[%emt 0:00:25]} 55. Kh1 {[%emt 0:00:08]} Qc3 {[%emt 0:00:02]} 56. Ng5 {[%emt 0:00:25]} Bxg5 {[%emt 0:01:24]} 57. Qxg5 {[%emt 0:00:18]} Re8 {[%emt 0:01:07]} 58. Rc1 {[%emt 0:02:12]} Re1+ {[%emt 0:00:46]} 59. Rxe1 {[%emt 0:00:04]} Qxe1+ {[%emt 0:00:04]} 60. Kh2 {[%emt 0:00:02]} Qc3 {[%emt 0:01:33]} 61. Qd5 {[%emt 0:00:27]} Kg7 {[%emt 0:00:44]} 62. h4 {[%emt 0:00:49]} Qc7+ {[%emt 0:00:46]} 63. Kh3 {[%emt 0:00:29]} Qc8+ {[%emt 0:00:35]} 64. Kg3 {[%emt 0:00:33]} Qc7+ {[%emt 0:00:52]} 65. Kf3 {[%emt 0:01:05]} Qc3+ {[%emt 0:01:30]} 66. Kf4 {[%emt 0:01:35]} Qc1+ {[%emt 0:00:25]} 67. Ke5 {[%emt 0:01:11]} Qe1+ {[%emt 0:00:42]} 68. Qe4 {[%emt 0:00:04]} Qc3+ {[%emt 0:00:28]} 1/2-1/2

[Event "EYCC 2017"]
[Site "Mamaia"]
[Date "2017.09.11"]
[Round "6"]
[White "Zhurova, Anna"]
[Black "Tsotsonava, Elene"]
[Result "1-0"]
[ECO "B31"]
[WhiteElo "1864"]
[BlackElo "1644"]
[Annotator "NA RC"]
[PlyCount "95"]
[EventDate "2017.??.??"]
[EventType "swiss"]
[EventCountry "ROU"]
[SourceTitle "playchess.com"]
[Source "ChessBase"]
[SourceQuality "1"]
[TimeControl "40/5400+30:1800+30"]

1. e4 c5 2. Nf3 Nc6 3. Bb5 g6 4. Bxc6 bxc6 5. d4 Bg7 6. c3 cxd4 7. cxd4 Nf6 8. Nc3 Ba6 9. e5 Nd5 10. Nxd5 cxd5 11. h4 h5 12. Ng5 Qb6 13. a3 d6 14. Qa4+ Bb5 15. Qb3 dxe5 16. dxe5 O-O 17. a4 Bc4 18. Qxb6 axb6 19. f4 Rfc8 20. Be3 Rc6 21. Kd2 Bb3 22. Rhc1 Rc4 23. Rxc4 dxc4 24. Bxb6 Rxa4 25. Rxa4 Bxa4 26. Nf3 Bc6 27. Ne1 f6 28. Bd4 fxe5 29. fxe5 Kf7 30. e6+ Kf8 31. Kc3 Bd5 32. Bxg7+ Kxg7 33. Kd4 Bxe6 34. Nf3 Kf6 35. Ng5 Bg8 36. Ke4 c3 37. bxc3 Bc4 38. Kf4 Bd5 39. Ne4+ Bxe4 40. Kxe4 Ke6 41. c4 Kd6 42. Kd4 Kc6 43. c5 Kc7 44. Kd5 Kd7 45. c6+ Kc7 46. Ke6 Kxc6 47. Kxe7 Kd5 48. Kf6 1-0

[Event "EYCC 2017"]
[Site "Mamaia"]
[Date "2017.09.11"]
[Round "6"]
[White "Samadov, Read"]
[Black "Maurizzi, Marc Andria"]
[Result "1/2-1/2"]
[ECO "B33"]
[WhiteElo "1848"]
[BlackElo "1947"]
[Annotator "NA"]
[PlyCount "58"]
[EventDate "2017.??.??"]
[EventType "swiss"]
[EventCountry "ROU"]
[SourceTitle "playchess.com"]
[Source "ChessBase"]
[SourceQuality "1"]
[TimeControl "40/5400+30:1800+30"]

1. e4 c5 2. Nf3 Nc6 3. d4 cxd4 4. Nxd4 Nf6 5. Nc3 e5 6. Ndb5 d6 7. Bg5 a6 8. Na3 Be6 9. Bxf6 Qxf6 10. Nd5 Qd8 11. c3 Ne7 12. Bc4 Nxd5 13. Bxd5 Qc7 14. O-O Bxd5 15. Qxd5 Be7 16. Rad1 O-O 17. Rd3 Rad8 18. Nc4 b5 19. Ne3 Bg5 20. Nc2 g6 21. Nb4 a5 22. Qc6 Rc8 23. Qxc7 Rxc7 24. Nd5 Rb7 25. g3 f5 26. f3 Rbf7 27. Rdd1 Rb7 28. h4 Bd8 29. Kg2 Kg7 1/2-1/2

[Event "EYCC 2017"]
[Site "Mamaia"]
[Date "2017.09.11"]
[Round "6"]
[White "Levitan, Ronit"]
[Black "Peycheva, Gergana"]
[Result "1-0"]
[ECO "B22"]
[WhiteElo "1837"]
[BlackElo "2252"]
[Annotator "NA"]
[PlyCount "73"]
[EventDate "2017.??.??"]
[EventType "swiss"]
[EventCountry "ROU"]
[SourceTitle "playchess.com"]
[Source "ChessBase"]
[SourceQuality "1"]
[TimeControl "40/5400+30:1800+30"]

1. e4 {[%emt 0:00:00]} c5 {[%emt 0:00:07]} 2. c3 {[%emt 0:00:00]} d5 {[%emt 0:00:35]} 3. exd5 {[%emt 0:00:00]} Qxd5 {[%emt 0:00:39]} 4. d4 {[%emt 0:00:08]} Nf6 {[%emt 0:01:09]} 5. Nf3 {[%emt 0:01:06]} e6 {[%emt 0:01:29]} 6. Bd3 {[%emt 0:02:12]} Be7 {[%emt 0:02:22]} 7. O-O {[%emt 0:01:16]} O-O {[%emt 0:02:25]} 8. Qe2 {[%emt 0:01:21]} Nc6 {[%emt 0:04:52]} 9. dxc5 {[%emt 0:01:01]} Qxc5 {[%emt 0:04:10]} 10. Nbd2 {[%emt 0:01:24]} Rd8 {[%emt 0:05:33]} 11. Ne4 {[%emt 0:03:13]} Nxe4 {[%emt 0:01:13]} 12. Bxe4 {[%emt 0:01:07]} Bf6 {[%emt 0:04:20]} 13. Be3 {[%emt 0:01:08]} Qe7 {[%emt 0:01:08]} 14. Rad1 {[%emt 0:03:58]} Bd7 {[%emt 0:04:31]} 15. Bf4 {[%emt 0:05:12]} Be8 {[%emt 0:02:36]} 16. Rxd8 {[%emt 0:02:09]} Rxd8 {[%emt 0:00:31]} 17. Rd1 {[%emt 0:00:11]} a6 {[%emt 0:06:21]} 18. Rxd8 {[%emt 0:07:43]} Qxd8 {[%emt 0:00:51]} 19. g3 {[%emt 0:01:42]} g6 {[%emt 0:04:33]} 20. Qc4 {[%emt 0:12:16]} b5 {[%emt 0:07:48]} 21. Qc5 {[%emt 0:04:26]} Be7 {[%emt 0:01:49]} 22. Qe3 {[%emt 0:01:41]} Qc8 {[%emt 0:05:53]} 23. Qb6 {[%emt 0:12:49]} f5 {[%emt 0:05:13]} 24. Bc2 {[%emt 0:03:49]} Bf6 {[%emt 0:08:16]} 25. Bb3 {[%emt 0:00:54]} Bf7 {[%emt 0:03:59]} 26. Qc5 {[%emt 0:05:36]} Qb7 {[%emt 0:05:52]} 27. Ne5 {[%emt 0:02:07]} Na5 {[%emt 0:02:40]} 28. Nxf7 {[%emt 0:09:03]} Kxf7 {[%emt 0:00:06]} 29. Bh6 {[%emt 0:02:26]} Qa8 {[%emt 0:06:59]} 30. Qc7+ {[%emt 0:02:21]} Be7 {[%emt 0:00:23]} 31. Qxa5 {[%emt 0:01:13]} g5 {[%emt 0:00:13]} 32. Qc7 {[%emt 0:04:29]} Qe4 {[%emt 0:01:25]} 33. Bxg5 {[%emt 0:04:23]} Qe1+ {[%emt 0:00:09]} 34. Kg2 {[%emt 0:00:06]} Qe4+ {[%emt 0:00:05]} 35. f3 {[%emt 0:01:32]} Qe2+ {[%emt 0:00:08]} 36. Kh3 {[%emt 0:00:47]} Kg6 {[%emt 0:00:52]} 37. Qxe7 {[%emt 0:01:06]} 1-0

[Event "EYCC 2017"]
[Site "Mamaia"]
[Date "2017.09.11"]
[Round "6"]
[White "Guillo Longares, Cecilia"]
[Black "Jarocka, Liwia"]
[Result "1-0"]
[ECO "E16"]
[WhiteElo "1810"]
[BlackElo "1970"]
[Annotator "NA RC"]
[PlyCount "157"]
[EventDate "2017.??.??"]
[EventType "swiss"]
[EventCountry "ROU"]
[SourceTitle "playchess.com"]
[Source "ChessBase"]
[SourceQuality "1"]
[TimeControl "40/5400+30:1800+30"]

1. d4 {[%emt 0:00:00]} Nf6 {[%emt 0:00:07]} 2. c4 {[%emt 0:00:00]} e6 {[%emt 0:00:09]} 3. Nf3 {[%emt 0:00:00]} Bb4+ {[%emt 0:00:31]} 4. Bd2 {[%emt 0:00:42]} Qe7 {[%emt 0:00:44]} 5. a3 {[%emt 0:01:31]} Bxd2+ {[%emt 0:00:27]} 6. Nbxd2 {[%emt 0:00:20]} d5 {[%emt 0:01:13]} 7. e3 {[%emt 0:00:33]} b6 {[%emt 0:01:43]} 8. Bd3 {[%emt 0:04:10]} Bb7 {[%emt 0:00:38]} 9. b4 {[%emt 0:01:19]} dxc4 {[%emt 0:05:25]} 10. Nxc4 {[%emt 0:04:47]} Nbd7 {[%emt 0:00:18]} 11. Rc1 {[%emt 0:01:54]} O-O {[%emt 0:01:48]} 12. O-O {[%emt 0:00:07]} c5 {[%emt 0:03:02]} 13. dxc5 {[%emt 0:06:11]} bxc5 {[%emt 0:00:17]} 14. b5 {[%emt 0:00:57]} Rfd8 {[%emt 0:01:42]} 15. Qe2 {[%emt 0:01:25]} Nb6 {[%emt 0:10:25]} 16. Nfe5 {[%emt 0:03:14]} Nxc4 {[%emt 0:07:06]} 17. Nxc4 {[%emt 0:03:40]} Qd7 {[%emt 0:07:39]} 18. Rfd1 {[%emt 0:09:24]} Qxb5 {[%emt 0:05:48]} 19. Nd6 {[%emt 0:00:27]} Qc6 {[%emt 0:00:16]} 20. Nxb7 {[%emt 0:02:11]} Qxb7 {[%emt 0:00:05]} 21. Rxc5 {[%emt 0:05:25]} Qb3 {[%emt 0:01:01]} 22. Ra5 {[%emt 0:02:57]} Rd7 {[%emt 0:06:37]} 23. Qc2 {[%emt 0:11:18]} Qxc2 {[%emt 0:03:11]} 24. Bxc2 {[%emt 0:00:07]} Rc7 {[%emt 0:01:52]} 25. Bd3 {[%emt 0:09:02]} Kf8 {[%emt 0:00:52]} 26. Kf1 {[%emt 0:00:24]} Rb8 {[%emt 0:01:14]} 27. Rb5 {[%emt 0:03:45]} Rxb5 {[%emt 0:02:36]} 28. Bxb5 {[%emt 0:00:37]} Ke7 {[%emt 0:01:31]} 29. Rd4 {[%emt 0:03:06]} Nd5 {[%emt 0:15:17]} 30. Bc4 {[%emt 0:11:01]} Nb6 {[%emt 0:01:34]} 31. Bb5 {[%emt 0:00:32]} Nd5 {[%emt 0:06:20]} 32. Bc4 {[%emt 0:00:06]} Nb6 {[%emt 0:00:37]} 33. Bb5 {[%emt 0:00:06]} Rc2 {[%emt 0:00:40]} 34. Ke1 {[%emt 0:03:15]} h6 {[%emt 0:01:05]} 35. Rd2 {[%emt 0:01:30]} Rc1+ {[%emt 0:02:06]} 36. Rd1 {[%emt 0:02:38]} Rc5 {[%emt 0:04:54]} 37. a4 {[%emt 0:03:19]} Rc7 {[%emt 0:00:21]} 38. Kd2 {[%emt 0:02:58]} Nd5 {[%emt 0:00:46]} 39. Rc1 {[%emt 0:01:49]} Rxc1 {[%emt 0:00:08]} 40. Kxc1 {[%emt 0:00:00]} Kd6 {[%emt 0:00:23]} 41. Kc2 {[%emt 0:00:19]} Nc7 {[%emt 0:02:23]} 42. Kb3 {[%emt 0:00:19]} a6 {[%emt 0:00:24]} 43. Bd3 {[%emt 0:00:47]} Kc5 {[%emt 0:08:08]} 44. Be2 {[%emt 0:02:10]} a5 {[%emt 0:00:34]} 45. Bd3 {[%emt 0:04:23]} e5 {[%emt 0:00:29]} 46. h3 {[%emt 0:04:37]} Ne8 {[%emt 0:02:54]} 47. Kc3 {[%emt 0:02:10]} Nd6 {[%emt 0:00:30]} 48. Bc2 {[%emt 0:02:55]} f5 {[%emt 0:00:29]} 49. Bd3 {[%emt 0:00:56]} f4 {[%emt 0:00:37]} 50. exf4 {[%emt 0:00:33]} exf4 {[%emt 0:00:05]} 51. Bc2 {[%emt 0:00:35]} Nc8 {[%emt 0:01:43]} 52. Bd1 {[%emt 0:01:54]} Nb6 {[%emt 0:00:40]} 53. Bb3 {[%emt 0:02:17]} Nc8 {[%emt 0:03:51]} 54. Bd1 {[%emt 0:00:34]} Nd6 {[%emt 0:00:26]} 55. Bc2 {[%emt 0:00:44]} Kd5 {[%emt 0:00:31]} 56. Bb3+ {[%emt 0:01:05]} Ke5 {[%emt 0:00:13]} 57. Bc2 {[%emt 0:04:36]} g5 {[%emt 0:00:32]} 58. Bd3 {[%emt 0:03:31]} h5 {[%emt 0:02:37]} 59. Be2 {[%emt 0:00:26]} h4 {[%emt 0:11:18]} 60. Bf3 {[%emt 0:01:17]} Ne4+ {[%emt 0:00:22]} 61. Kc4 {[%emt 0:00:07]} Nxf2 {[%emt 0:00:50]} 62. Kb5 {[%emt 0:00:03]} Kd4 {[%emt 0:01:08]} 63. Kxa5 {[%emt 0:00:15]} Kc5 {[%emt 0:02:32]} 64. Ka6 {[%emt 0:00:30]} Nd3 {[%emt 0:00:12]} 65. a5 {[%emt 0:01:05]} Ne5 {[%emt 0:03:05]} 66. Kb7 {[%emt 0:05:28]} Nxf3 {[%emt 0:00:04]} 67. a6 {[%emt 0:00:05]} g4 {[%emt 0:00:12]} 68. a7 {[%emt 0:00:10]} gxh3 {[%emt 0:00:19]} 69. gxh3 {[%emt 0:00:29]} Kd4 {[%emt 0:00:06]} 70. a8=Q {[%emt 0:00:11]} Nd2 {[%emt 0:00:21]} 71. Qd8+ {[%emt 0:00:20]} Ke3 {[%emt 0:00:08]} 72. Qxh4 {[%emt 0:00:07]} f3 {[%emt 0:00:04]} 73. Qe1+ {[%emt 0:01:01]} Kd3 {[%emt 0:00:12]} 74. h4 {[%emt 0:00:25]} Ne4 {[%emt 0:00:06]} 75. h5 {[%emt 0:00:25]} f2 {[%emt 0:00:35]} 76. Qxf2 {[%emt 0:00:10]} Nxf2 {[%emt 0:00:04]} 77. h6 {[%emt 0:00:04]} Ne4 {[%emt 0:00:05]} 78. h7 {[%emt 0:00:19]} Nf6 {[%emt 0:00:03]} 79. h8=Q {[%emt 0:00:10]} 1-0

[Event "EYCC 2017"]
[Site "Mamaia"]
[Date "2017.09.11"]
[Round "6"]
[White "Koubova, Anna Marie"]
[Black "Eizaguerri Floris, Maria"]
[Result "0-1"]
[ECO "D02"]
[WhiteElo "1805"]
[BlackElo "2098"]
[Annotator "NA"]
[PlyCount "72"]
[EventDate "2017.??.??"]
[EventType "swiss"]
[EventCountry "ROU"]
[SourceTitle "playchess.com"]
[Source "ChessBase"]
[SourceQuality "1"]
[TimeControl "40/5400+30:1800+30"]

1. d4 {[%emt 0:00:00]} d5 {[%emt 0:00:09]} 2. Nf3 {[%emt 0:00:00]} Nf6 {[%emt 0:00:07]} 3. g3 {[%emt 0:00:00]} Bf5 {[%emt 0:00:56]} 4. c4 {[%emt 0:00:24]} c6 {[%emt 0:00:32]} 5. Nc3 {[%emt 0:00:15]} e6 {[%emt 0:00:36]} 6. Nh4 {[%emt 0:00:40]} Be4 {[%emt 0:00:26]} 7. f3 {[%emt 0:03:57]} Bg6 {[%emt 0:00:46]} 8. Qb3 {[%emt 0:00:17]} Qb6 {[%emt 0:00:14]} 9. Nxg6 {[%emt 0:00:13]} hxg6 {[%emt 0:00:05]} 10. c5 {[%emt 0:00:07]} Qc7 {[%emt 0:00:41]} 11. Bf4 {[%emt 0:06:54]} Qc8 {[%emt 0:01:07]} 12. Bg2 {[%emt 0:05:08]} Nbd7 {[%emt 0:05:41]} 13. O-O {[%emt 0:03:11]} e5 {[%emt 0:05:16]} 14. dxe5 {[%emt 0:01:21]} Bxc5+ {[%emt 0:00:27]} 15. e3 {[%emt 0:00:15]} Nh5 {[%emt 0:04:57]} 16. Rfe1 {[%emt 0:02:40]} Nxf4 {[%emt 0:10:51]} 17. gxf4 {[%emt 0:00:06]} Nb6 {[%emt 0:06:07]} 18. Rac1 {[%emt 0:01:44]} Qd8 {[%emt 0:04:02]} 19. Ne2 {[%emt 0:10:58]} Qh4 {[%emt 0:09:08]} 20. h3 {[%emt 0:04:38]} Nc4 {[%emt 0:03:01]} 21. Qxb7 {[%emt 0:03:02]} Bxe3+ {[%emt 0:00:45]} 22. Kh1 {[%emt 0:00:31]} O-O {[%emt 0:00:53]} 23. Rb1 {[%emt 0:05:56]} Nd2 {[%emt 0:03:48]} 24. Qxc6 {[%emt 0:03:58]} Nxb1 {[%emt 0:06:33]} 25. Rxb1 {[%emt 0:00:13]} d4 {[%emt 0:02:04]} 26. Qe4 {[%emt 0:03:16]} Rfd8 {[%emt 0:05:08]} 27. f5 {[%emt 0:05:24]} Qxe4 {[%emt 0:05:18]} 28. fxe4 {[%emt 0:00:12]} Rac8 {[%emt 0:00:17]} 29. Bf3 {[%emt 0:02:15]} Rc2 {[%emt 0:02:36]} 30. Bg4 {[%emt 0:06:20]} d3 {[%emt 0:03:40]} 31. Nc3 {[%emt 0:01:31]} Rb8 {[%emt 0:02:30]} 32. Nd5 {[%emt 0:02:08]} Bg5 {[%emt 0:04:49]} 33. e6 {[%emt 0:02:34]} fxe6 {[%emt 0:01:55]} 34. fxe6 {[%emt 0:00:07]} Rbxb2 {[%emt 0:02:11]} 35. Rxb2 {[%emt 0:00:52]} Rxb2 {[%emt 0:00:06]} 36. e7 {[%emt 0:00:07]} Kf7 {[%emt 0:01:21]} 0-1